bitfinex-derivatives/quotes_BTCF0:USTF0_20241009
["timestamp","ask_amount","ask_price","bid_price","bid_amount"]
[1728500781880,2.26735336,61174.0,61173.0,0.082796]
[1728500782082,2.26135336,61174.0,61173.0,0.081796]
[1728500782281,2.26135336,61174.0,61173.0,0.082796]
[1728500782488,2.26135336,61174.0,61173.0,0.083796]
[1728500782489,2.26735336,61174.0,61173.0,0.083796]
[1728500782691,2.26735336,61174.0,61173.0,0.23555089]
[1728500782885,2.26735336,61174.0,61173.0,0.23355089]
[1728500782886,2.25535336,61174.0,61173.0,0.23355089]
[1728500783195,2.26735336,61174.0,61173.0,0.23555089]
[1728500783388,2.244597,61174.0,61173.0,0.23555089]
[1728500783689,2.144597,61174.0,61173.0,0.23555089]
[1728500784286,2.144597,61174.0,61173.0,0.083796]
[1728500786283,2.138597,61174.0,61173.0,0.082796]
[1728500786483,2.144597,61174.0,61173.0,0.083796]
[1728500787800,0.00245272,61181.0,61178.0,0.00436]
[1728500788092,0.081773,61191.0,61190.0,0.081769]
[1728500788288,1.581773,61191.0,61190.0,0.081769]
[1728500788484,0.3608,61199.0,61192.0,0.00436]
[1728500788692,0.081767,61197.0,61196.0,0.081764]
[1728500788895,1.581767,61197.0,61196.0,0.081764]
[1728500789985,1.587767,61197.0,61196.0,0.082764]
[1728500790383,1.587767,61197.0,61180.0,0.068]
[1728500790384,0.081765,61196.0,61180.0,0.068]
[1728500790590,0.081781,61187.0,61186.0,0.081778]
[1728500790987,0.081781,61187.0,61186.0,0.098128]
[1728500791378,0.081781,61187.0,61186.0,0.16348145]
[1728500791583,0.081781,61187.0,61186.0,0.01635]
[1728500791584,0.271781,61187.0,61186.0,0.01635]
[1728500792386,0.271781,61187.0,61186.0,0.01735]
[1728500792685,0.271781,61187.0,61178.0,0.06535345]
[1728500792686,0.081786,61181.0,61178.0,0.06535345]
[1728500792997,0.081786,61181.0,61176.0,0.13070328]
[1728500792998,0.19,61179.0,61176.0,0.13070328]
[1728500793180,0.081786,61181.0,61176.0,0.081792]
[1728500793181,0.271791,61177.0,61176.0,0.081792]
[1728500794985,0.081795,61174.0,61173.0,0.13070628]
[1728500795688,0.081795,61174.0,61173.0,0.081795]
[1728500796405,0.081795,61174.0,61173.0,0.084795]
[1728500796599,0.082795,61174.0,61173.0,0.084795]
[1728500797203,0.084795,61174.0,61173.0,0.13070628]
[1728500798396,0.003,61174.0,61173.0,0.13070628]
[1728500798796,0.084795,61174.0,61173.0,0.13070628]
[1728500799387,0.082795,61174.0,61173.0,0.081795]
[1728500799589,0.084795,61174.0,61173.0,0.081795]
[1728500800092,0.086795,61174.0,61173.0,0.081795]
[1728500800693,0.005,61174.0,61173.0,0.081795]
[1728500801290,0.005,61174.0,61173.0,0.271795]
[1728500801490,0.002,61174.0,61173.0,0.271795]
[1728500801699,0.002,61174.0,61173.0,0.339095]
[1728500801996,0.3608,61183.0,61173.0,1.429495]
[1728500802204,0.0400574,61182.0,61181.0,0.081786]
[1728500802793,0.081784,61183.0,61177.0,0.55292]
[1728500802994,0.01849245,61186.0,61178.0,0.08179]
[1728500803298,0.271775,61189.0,61188.0,0.081776]
[1728500803604,0.12183024,61189.0,61188.0,0.081776]
[1728500805304,0.12183024,61189.0,61188.0,0.082776]
[1728500805596,0.12183024,61189.0,61188.0,0.001]
[1728500805799,0.08179,61179.0,61178.0,0.081787]
[1728500805999,0.27179,61179.0,61178.0,0.081787]
[1728500806300,0.27179,61179.0,61178.0,0.082787]
[1728500806507,0.39179,61179.0,61178.0,0.08279]
[1728500806998,0.31,61179.0,61171.0,0.3608]
[1728500807207,0.081796,61175.0,61174.0,0.081794]
[1728500807799,0.271796,61175.0,61174.0,0.081794]
[1728500808105,0.001,61179.0,61174.0,0.271794]
[1728500808400,0.154874,61190.0,61182.0,0.081784]
[1728500808603,0.081782,61184.0,61182.0,0.081784]
[1728500808798,0.081782,61184.0,61183.0,0.081783]
[1728500809900,0.442582,61184.0,61183.0,0.081783]
[1728500810207,0.442582,61184.0,61174.0,0.442594]
[1728500810208,0.4608,61184.0,61174.0,0.444674]
[1728500810393,0.271791,61180.0,61179.0,0.081786]
[1728500811500,0.19,61180.0,61172.0,0.08966]
[1728500811800,0.19,61180.0,61174.0,0.081795]
[1728500811801,0.271794,61175.0,61174.0,0.081795]
[1728500812995,0.632594,61175.0,61174.0,0.081795]
[1728500813398,2.132594,61175.0,61174.0,0.081795]
[1728500814305,2.132594,61175.0,61174.0,0.084795]
[1728500814306,2.22287517,61175.0,61174.0,0.084795]
[1728500814511,0.78155529,61175.0,61174.0,0.089795]
[1728500814694,0.78155529,61175.0,61174.0,0.008]
[1728500814897,2.47921663,61175.0,61174.0,0.003]
[1728500815503,2.30113925,61175.0,61174.0,0.003]
[1728500816108,0.081795,61174.0,61173.0,0.081795]
[1728500816304,0.40883463,61174.0,61173.0,0.081795]
[1728500816500,0.43025049,61174.0,61164.0,0.0881945]
[1728500816695,2.07122396,61175.0,61164.0,0.151708]
[1728500816696,0.14569181,61165.0,61164.0,0.151708]
[1728500816903,0.21961298,61165.0,61164.0,0.151708]
[1728500817107,0.09028117,61165.0,61164.0,0.151708]
[1728500817523,0.45108117,61165.0,61164.0,0.151708]
[1728500817707,0.15572817,61165.0,61164.0,0.151708]
[1728500818307,0.15572817,61165.0,61164.0,0.088808]
[1728500818611,0.12187085,61165.0,61164.0,0.088808]
[1728500819199,0.12187085,61165.0,61164.0,0.093808]
[1728500820005,0.04006385,61165.0,61164.0,0.093808]
[1728500820197,0.25988234,61167.0,61164.0,0.093808]
[1728500820402,0.04006385,61166.0,61165.0,0.081807]
[1728500820703,0.29994819,61166.0,61165.0,0.081807]
[1728500821111,0.081807,61165.0,61164.0,0.012]
[1728500821404,0.04087177,61165.0,61164.0,0.012]
[1728500822108,0.52167177,61165.0,61164.0,0.005]
[1728500822415,0.40167177,61165.0,61164.0,0.04896859]
[1728500822619,0.40167177,61165.0,61164.0,0.05396859]
[1728500822620,0.442607,61165.0,61164.0,0.05396859]
[1728500822911,0.442607,61165.0,61164.0,0.012]
[1728500823595,1.56128,61165.0,61162.0,0.01636]
[1728500823800,1.56128,61165.0,61159.0,0.00245271]
[1728500823801,0.081814,61160.0,61159.0,0.00245271]
[1728500824002,0.081814,61160.0,61153.0,0.081822]
[1728500824003,0.081815,61159.0,61153.0,0.081822]
[1728500824214,0.632622,61154.0,61153.0,0.081822]
[1728500824403,0.442622,61154.0,61153.0,0.081822]
[1728500824602,0.442622,61154.0,61149.0,0.06530459]
[1728500824603,0.081824,61152.0,61149.0,0.06530459]
[1728500824797,0.081824,61152.0,61148.0,0.01636]
[1728500824798,0.081828,61149.0,61148.0,0.01636]
[1728500824998,0.201828,61149.0,61148.0,0.01636]
[1728500825301,1.701828,61149.0,61148.0,0.01636]
[1728500825912,1.581828,61149.0,61148.0,0.09819]
[1728500826708,1.581828,61149.0,61148.0,0.10919]
[1728500827111,1.5,61149.0,61148.0,0.10919]
[1728500827405,1.581828,61149.0,61148.0,0.10919]
[1728500827812,1.582828,61149.0,61148.0,0.12219]
[1728500829211,0.082828,61149.0,61148.0,0.12219]
[1728500829603,1.582828,61149.0,61148.0,0.12219]
[1728500829805,1.501,61149.0,61148.0,0.12219]
[1728500830604,1.582828,61149.0,61148.0,0.12219]
[1728500830810,1.501,61149.0,61148.0,0.12219]
[1728500831008,0.001,61149.0,61148.0,0.31219]
[1728500831407,0.001,61149.0,61148.0,0.12219]
[1728500832713,0.082828,61149.0,61148.0,0.12219]
[1728500833433,0.001,61149.0,61148.0,0.12219]
[1728500834107,0.082828,61149.0,61148.0,0.12219]
[1728500834308,0.001,61149.0,61148.0,0.12219]
[1728500835017,0.082828,61149.0,61148.0,0.12219]
[1728500835216,0.202828,61149.0,61148.0,0.04036]
[1728500836517,0.001,61149.0,61148.0,0.78579]
[1728500836712,0.001,61149.0,61148.0,1.39179]
[1728500836914,0.442619,61156.0,61155.0,0.08182]
[1728500836915,0.081819,61156.0,61155.0,0.08182]
[1728500837413,0.442619,61156.0,61155.0,0.08182]
[1728500838713,0.081827,61153.0,61152.0,0.081823]
[1728500838914,0.271827,61153.0,61152.0,0.081823]
[1728500839119,0.271827,61153.0,61148.0,0.01636]
[1728500839120,0.081828,61149.0,61148.0,0.01636]
[1728500839319,0.381828,61149.0,61148.0,0.01636]
[1728500841316,0.381828,61149.0,61142.0,0.06755827]
[1728500841317,1.472428,61149.0,61142.0,0.00245312]
[1728500841517,1.472428,61149.0,61135.0,0.08138144]
[1728500841518,0.3608,61143.0,61136.0,0.06510515]
[1728500841814,0.3608,61143.0,61135.0,0.081847]
[1728500841815,0.081846,61136.0,61135.0,0.081847]
[1728500842216,0.081846,61136.0,61135.0,0.14695215]
[1728500842816,0.081846,61136.0,61135.0,0.081847]
[1728500843016,0.082846,61136.0,61135.0,0.090847]
[1728500843223,0.082846,61136.0,61135.0,0.15595215]
[1728500843529,0.082846,61136.0,61135.0,0.090847]
[1728500844426,0.002,61136.0,61135.0,0.16304944]
[1728500844629,0.002,61136.0,61135.0,0.097847]
[1728500845427,0.632639,61142.0,61141.0,0.081839]
[1728500846019,2.132639,61142.0,61141.0,0.081839]
[1728500846427,0.632639,61142.0,61141.0,0.081839]
[1728500846635,0.632639,61142.0,61141.0,0.083839]
[1728500848729,0.3608,61142.0,61141.0,0.083839]
[1728500849032,0.08562,61155.0,61154.0,0.081822]
[1728500849235,0.08182,61155.0,61154.0,0.081822]
[1728500850318,0.44962,61155.0,61154.0,0.082822]
[1728500850518,0.44962,61155.0,61154.0,0.14810287]
[1728500850726,0.007,61155.0,61154.0,0.082822]
[1728500850927,0.007,61155.0,61154.0,0.20753736]
[1728500851131,0.017,61155.0,61154.0,0.20853736]
[1728500851634,0.017,61155.0,61154.0,0.083822]
[1728500851830,0.016,61155.0,61154.0,0.083822]
[1728500852232,0.28782,61155.0,61154.0,0.002]
[1728500852429,0.08982,61155.0,61154.0,0.082822]
[1728500852632,0.198,61155.0,61154.0,0.081822]
[1728500852832,0.008,61155.0,61154.0,0.081822]
[1728500854932,0.003,61155.0,61154.0,0.081822]
[1728500855241,0.081827,61150.0,61139.0,0.00208]
[1728500855537,0.081827,61150.0,61122.0,0.06774202]
[1728500855538,0.081858,61127.0,61126.0,0.0022]
[1728500855736,0.08186,61125.0,61124.0,0.01637]
[1728500855940,0.081863,61123.0,61122.0,0.00245392]
[1728500856239,0.271863,61123.0,61122.0,0.00245392]
[1728500856743,1.771863,61123.0,61122.0,0.00245392]
[1728500857039,1.5,61123.0,61122.0,0.08431792]
[1728500858246,1.501,61123.0,61122.0,0.08431792]
[1728500858942,0.001,61123.0,61122.0,0.36431792]
[1728500859236,0.001,61123.0,61122.0,0.08431792]
[1728500859535,0.001,61123.0,61122.0,0.20908824]
[1728500859748,0.001,61123.0,61122.0,0.16581431]
[1728500859930,0.001,61123.0,61122.0,0.20909976]
[1728500860833,0.001,61123.0,61122.0,0.20664584]
[1728500861141,0.001,61123.0,61122.0,0.28812144]
[1728500861336,1.78088,61131.0,61122.0,0.12478184]
[1728500861538,0.001,61123.0,61122.0,0.081864]
[1728500861837,0.001,61123.0,61122.0,0.20663561]
[1728500862135,0.001,61123.0,61122.0,0.28123561]
[1728500862838,0.01855006,61137.0,61122.0,0.28123561]
[1728500862839,0.28,61139.0,61122.0,1.56917161]
[1728500863043,0.08429244,61142.0,61141.0,0.081839]
[1728500863539,0.08429244,61142.0,61141.0,0.14699155]
[1728500863742,0.08429244,61142.0,61141.0,0.081839]
[1728500864431,0.081838,61142.0,61141.0,0.081839]
[1728500864634,0.081844,61137.0,61136.0,0.01637]
[1728500864836,0.442644,61137.0,61136.0,0.01637]
[1728500865246,0.722644,61137.0,61136.0,0.098216]
[1728500865548,0.449638,61142.0,61139.0,0.081841]
[1728500865549,0.08184,61140.0,61139.0,0.081841]
[1728500866741,0.36184,61140.0,61139.0,0.081841]
[1728500867639,0.28,61140.0,61139.0,0.14700224]
[1728500867835,0.36184,61140.0,61139.0,0.14701232]
[1728500868048,0.36584,61140.0,61139.0,0.081841]
[1728500868346,0.37084,61140.0,61139.0,0.14701733]
[1728500868547,0.289,61140.0,61138.0,0.06517633]
[1728500868735,0.081842,61139.0,61138.0,0.06517633]
[1728500868935,0.081843,61138.0,61137.0,0.06517633]
[1728500869240,0.081843,61138.0,61136.0,0.01637]
[1728500869241,0.081844,61137.0,61136.0,0.01637]
[1728500869449,0.442644,61137.0,61136.0,0.08156217]
[1728500869741,0.081852,61131.0,61129.0,0.06519217]
[1728500869943,0.081852,61131.0,61127.0,0.442657]
[1728500870142,0.081854,61130.0,61129.0,0.0651964]
[1728500871044,0.081854,61130.0,61127.0,0.06519796]
[1728500871249,0.081858,61127.0,61126.0,0.06519796]
[1728500871431,0.081859,61126.0,61125.0,0.08186]
[1728500871842,0.442659,61126.0,61125.0,0.08186]
[1728500872049,0.081859,61126.0,61125.0,0.08186]
[1728500872545,0.361857,61128.0,61127.0,0.081858]
[1728500874435,0.365857,61128.0,61127.0,0.081858]
[1728500875645,0.370857,61128.0,61127.0,0.081858]
[1728500877042,0.365857,61128.0,61127.0,0.081858]
[1728500877248,0.009,61128.0,61127.0,0.081858]
[1728500877848,0.731656,61128.0,61124.0,0.01637]
[1728500878152,0.081873,61116.0,61115.0,0.00088]
[1728500878452,0.081873,61116.0,61113.0,0.081876]
[1728500878453,0.081875,61114.0,61113.0,0.081876]
[1728500879647,0.081881,61111.0,61110.0,0.08188]
[1728500879852,0.361881,61111.0,61110.0,0.08188]
[1728500880340,0.28,61111.0,61103.0,0.0743]
[1728500880542,0.442675,61114.0,61106.0,0.01637]
[1728500880543,0.442685,61107.0,61106.0,0.01637]
[1728500881944,0.633685,61107.0,61106.0,0.02937]
[1728500882140,0.634685,61107.0,61106.0,0.04337]
[1728500882338,1.835645,61107.0,61106.0,0.00761154]
[1728500882547,1.835645,61107.0,61106.0,0.01861154]
[1728500883251,1.835645,61107.0,61091.0,0.0691]
[1728500883252,0.081899,61096.0,61095.0,0.01638]
[1728500883450,0.632699,61096.0,61095.0,0.01638]
[1728500884753,0.632699,61096.0,61086.0,0.016]
[1728500884754,0.081911,61087.0,61086.0,0.016]
[1728500885062,0.632711,61087.0,61086.0,0.016]
[1728500885439,2.132711,61087.0,61086.0,0.016]
[1728500885646,1.942711,61087.0,61086.0,0.097913]
[1728500885848,2.132711,61087.0,61086.0,0.097913]
[1728500886149,2.133711,61087.0,61086.0,0.016]
[1728500886342,2.134711,61087.0,61086.0,0.023]
[1728500886543,2.224711,61087.0,61086.0,0.023]
[1728500887253,3.315831,61087.0,61079.0,0.01638]
[1728500887557,3.315831,61087.0,61068.0,0.06519796]
[1728500887558,0.081931,61073.0,61068.0,0.06519796]
[1728500887747,0.081932,61072.0,61068.0,0.081937]
[1728500888053,0.081932,61072.0,61067.0,0.0709]
[1728500888248,0.081932,61072.0,61071.0,0.081933]
[1728500888447,0.6408,61080.0,61076.0,0.081925]
[1728500888448,0.081926,61077.0,61076.0,0.081925]
[1728500888754,0.442715,61085.0,61072.0,0.3608]
[1728500888755,0.28,61082.0,61072.0,0.3608]
[1728500888958,0.361918,61082.0,61081.0,0.081919]
[1728500889139,0.081922,61080.0,61073.0,0.08193]
[1728500889343,0.28,61082.0,61081.0,0.081919]
[1728500889544,0.28,61082.0,61072.0,0.3608]
[1728500889545,0.3608,61085.0,61084.0,0.081915]
[1728500890144,0.28,61088.0,61084.0,0.081915]
[1728500890348,0.28,61093.0,61082.0,0.3608]
[1728500890543,0.081905,61092.0,61091.0,0.081906]
[1728500890747,0.28,61092.0,61091.0,0.081906]
[1728500891356,0.26361,61092.0,61091.0,0.081906]
[1728500891855,0.28161,61092.0,61091.0,0.081906]
[1728500892456,0.014,61092.0,61091.0,0.081906]
[1728500892653,0.6408,61097.0,61094.0,0.084282]
[1728500892654,0.081901,61095.0,61094.0,0.084282]
[1728500892851,0.442698,61097.0,61096.0,0.081899]
[1728500893852,0.722698,61097.0,61096.0,0.081899]
[1728500894251,0.6408,61097.0,61096.0,0.081899]
[1728500895060,0.59342386,61097.0,61096.0,0.081899]
[1728500895558,0.60242386,61097.0,61096.0,0.081899]
[1728500896258,0.32242386,61097.0,61096.0,0.081899]
[1728500896453,0.019,61097.0,61096.0,0.081899]
[1728500903062,0.081882,61109.0,61107.0,0.081885]
[1728500903257,0.081882,61109.0,61102.0,0.08189]
[1728500903258,0.3608,61112.0,61109.0,0.081882]
[1728500903454,0.09929261,61110.0,61109.0,0.081882]
[1728500903658,0.08433669,61110.0,61109.0,0.081882]
[1728500904062,0.081887,61107.0,61106.0,0.081886]
[1728500904866,0.28,61108.0,61103.0,0.43854]
[1728500905067,0.361884,61108.0,61107.0,0.081885]
[1728500905269,0.361884,61108.0,61103.0,0.4377]
[1728500905270,0.4,61108.0,61103.0,0.00088]
[1728500905461,0.4,61108.0,61098.0,0.3608]
[1728500905462,0.081895,61099.0,61098.0,0.442695]
[1728500907666,0.083895,61099.0,61098.0,0.442695]
[1728500908073,0.085895,61099.0,61098.0,0.442695]
[1728500908281,0.004,61099.0,61098.0,0.442695]
[1728500908572,0.004,61099.0,61098.0,0.081895]
[1728500908573,0.085895,61099.0,61098.0,0.081895]
[1728500909465,0.081902,61096.0,61095.0,0.081901]
[1728500910471,0.5558,61099.0,61089.0,0.19]
[1728500910775,0.081899,61097.0,61096.0,0.081897]
[1728500911472,0.3608,61098.0,61097.0,0.081898]
[1728500911672,0.3608,61098.0,61097.0,0.20672319]
[1728500911874,0.34442,61098.0,61097.0,0.20672314]
[1728500912675,0.30344013,61098.0,61097.0,0.20672314]
[1728500912865,0.38533713,61098.0,61097.0,0.20672314]
[1728500913275,0.30344013,61098.0,61097.0,0.20672314]
[1728500913576,0.38533713,61098.0,61097.0,0.20672314]
[1728500913881,0.38633713,61098.0,61097.0,0.20672314]
[1728500914270,0.38633713,61098.0,61097.0,0.28834015]
[1728500914477,0.081898,61097.0,61096.0,0.08161701]
[1728500914771,0.081902,61096.0,61095.0,0.081899]
[1728500915171,0.081902,61096.0,61095.0,0.28834521]
[1728500915474,0.081902,61096.0,61095.0,0.16351601]
[1728500915864,0.081902,61096.0,61095.0,0.081899]
[1728500916265,0.081902,61096.0,61095.0,0.16551601]
[1728500916574,0.081902,61096.0,61095.0,0.083899]
[1728500917080,1.6745,61097.0,61095.0,0.2903434]
[1728500917278,1.6745,61097.0,61096.0,0.47834314]
[1728500917279,1.5,61097.0,61096.0,0.47834314]
[1728500917468,0.30344013,61098.0,61097.0,0.081898]
[1728500917673,0.30344013,61098.0,61097.0,0.1635652]
[1728500917871,1.80344013,61098.0,61097.0,0.1635652]
[1728500918077,1.88533713,61098.0,61097.0,0.1635652]
[1728500918279,0.30344013,61098.0,61097.0,0.20672319]
[1728500918476,0.3608,61107.0,61106.0,0.081886]
[1728500918676,0.3608,61107.0,61106.0,0.39669595]
[1728500918677,0.34443,61107.0,61106.0,0.39669595]
[1728500918865,0.34443,61107.0,61106.0,0.39669093]
[1728500919068,0.34443,61107.0,61106.0,0.30477201]
[1728500919274,0.34443,61107.0,61106.0,0.20669093]
[1728500919573,0.01741762,61110.0,61106.0,0.20669093]
[1728500919574,0.00245569,61110.0,61109.0,0.081882]
[1728500919772,0.00245569,61110.0,61109.0,0.271882]
[1728500920483,0.00245569,61110.0,61109.0,0.762802]
[1728500920977,0.01545569,61110.0,61109.0,0.68192]
[1728500921276,0.01645569,61110.0,61109.0,0.573802]
[1728500921884,0.01645569,61110.0,61109.0,0.572802]
[1728500921885,0.00545569,61110.0,61109.0,0.572802]
[1728500922278,0.00545569,61110.0,61109.0,0.081882]
[1728500923983,0.00545569,61110.0,61106.0,0.633646]
[1728500924281,0.00545569,61110.0,61109.0,0.081882]
[1728500924489,0.274881,61110.0,61109.0,0.081882]
[1728500924687,0.003,61110.0,61109.0,0.081882]
[1728500925183,0.001,61110.0,61109.0,0.081882]
[1728500925394,0.003,61110.0,61109.0,0.081882]
[1728500926487,0.274881,61110.0,61109.0,0.081882]
[1728500926881,0.272881,61110.0,61106.0,0.01637]
[1728500927085,0.003,61110.0,61109.0,0.081882]
[1728500928188,0.00096,61113.0,61112.0,0.081878]
[1728500928488,0.442672,61117.0,61116.0,0.081873]
[1728500929183,0.442672,61117.0,61109.0,0.081882]
[1728500929184,0.065511,61110.0,61109.0,0.081882]
[1728500929982,0.067511,61110.0,61105.0,0.081887]
[1728500930190,0.067511,61110.0,61109.0,0.081882]
[1728500931085,0.066511,61110.0,61109.0,0.081882]
[1728500931388,0.067511,61110.0,61109.0,0.081882]
[1728500932598,0.002,61110.0,61109.0,0.081882]
[1728500933091,0.083881,61110.0,61109.0,0.081882]
[1728500933284,0.002,61110.0,61109.0,0.081882]
[1728500933685,0.083881,61110.0,61109.0,0.081882]
[1728500933884,0.002,61110.0,61109.0,0.081882]
[1728500934688,0.083881,61110.0,61109.0,0.081882]
[1728500936095,0.083881,61110.0,61104.0,0.442687]
[1728500936393,0.083881,61110.0,61109.0,0.081882]
[1728500937195,0.082881,61110.0,61109.0,0.081882]
[1728500937391,0.081881,61110.0,61109.0,0.081882]
[1728500937988,0.082881,61110.0,61109.0,0.081882]
[1728500938601,0.084881,61110.0,61109.0,0.081882]
[1728500938983,0.084881,61110.0,61109.0,0.00013056]
[1728500939279,0.084881,61110.0,61109.0,0.081882]
[1728500942181,0.084881,61110.0,61105.0,0.3608]
[1728500942588,0.084881,61110.0,61109.0,0.081882]
[1728500943499,0.083881,61110.0,61109.0,0.081882]
[1728500943995,0.065522,61102.0,61101.0,0.081889]
[1728500945107,0.065522,61102.0,61096.0,0.4459929]
[1728500945598,0.065522,61102.0,61101.0,0.086889]
[1728500945599,0.066522,61102.0,61101.0,0.086889]
[1728500945892,0.050152,61102.0,61101.0,0.086889]
[1728500946690,0.051152,61102.0,61101.0,0.093889]
[1728500948191,0.051152,61102.0,61101.0,0.012]
[1728500948993,0.051152,61102.0,61101.0,0.093889]
[1728500949913,0.081894,61102.0,61101.0,0.37060362]
[1728500951298,0.081894,61102.0,61101.0,0.27671462]
[1728500951899,0.081894,61102.0,61101.0,0.35860462]
[1728500952889,0.36907111,61104.0,61101.0,0.35860462]
[1728500953097,0.45096111,61104.0,61103.0,0.08189]
[1728500953291,0.45096111,61104.0,61103.0,0.20669532]
[1728500953900,0.35458908,61104.0,61103.0,0.39669532]
[1728500954206,0.00197134,61118.0,61116.0,0.49088]
[1728500954509,0.3608,61125.0,61116.0,0.49088]
[1728500954510,0.3608,61125.0,61124.0,0.081862]
[1728500954695,0.34443,61125.0,61124.0,0.30480943]
[1728500955205,0.40992,61125.0,61124.0,0.20666732]
[1728500955596,0.40992,61125.0,61124.0,0.20662965]
[1728500956694,0.46401338,61125.0,61124.0,0.081862]
[1728500957093,0.47801338,61125.0,61124.0,0.081862]
[1728500958002,0.39615338,61125.0,61124.0,0.098232]
[1728500958210,0.39615338,61125.0,61124.0,0.288232]
[1728500958393,0.35606,61125.0,61124.0,0.288232]
[1728500959604,0.35602,61125.0,61124.0,0.288232]
[1728500960199,0.35602,61125.0,61124.0,0.098232]
[1728500960391,0.43788,61125.0,61124.0,0.01637]
[1728500960801,0.10986,61125.0,61124.0,0.01637]
[1728500961194,0.028,61125.0,61124.0,0.098232]
[1728500962001,0.028,61125.0,61124.0,0.288232]
[1728500962509,0.3608,61134.0,61133.0,0.08185]
[1728500962703,0.442648,61134.0,61133.0,0.27185]
[1728500963008,0.442648,61134.0,61133.0,0.08185]
[1728500963009,0.46136266,61134.0,61133.0,0.08185]
[1728500963203,0.46136266,61134.0,61124.0,0.01637]
[1728500963204,0.08185,61133.0,61124.0,0.01637]
[1728500963510,0.27186,61126.0,61125.0,0.081858]
[1728500964105,0.08186,61126.0,61125.0,0.081858]
[1728500965010,0.09486,61126.0,61125.0,0.082858]
[1728500965504,0.10386,61126.0,61125.0,0.083858]
[1728500966505,0.10386,61126.0,61125.0,0.002]
[1728500966908,0.10386,61126.0,61125.0,0.083858]
[1728500969305,0.10386,61126.0,61125.0,0.00210656]
[1728500969608,0.10386,61126.0,61125.0,0.081858]
[1728500972111,0.10386,61126.0,61124.0,0.01637]
[1728500972112,0.29386,61126.0,61124.0,0.01637]
[1728500972313,0.0903481,61125.0,61120.0,0.00245415]
[1728500972510,0.0903481,61125.0,61109.0,0.3608]
[1728500972511,0.081881,61110.0,61109.0,0.36338371]
[1728500972709,0.426311,61110.0,61109.0,0.081881]
[1728500973216,0.065511,61110.0,61109.0,0.081881]
[1728500974317,0.066511,61110.0,61109.0,0.081881]
[1728500975125,0.067511,61110.0,61109.0,0.081881]
[1728500975324,0.067511,61110.0,61108.0,0.0054]
[1728500975532,0.067511,61110.0,61102.0,0.28444856]
[1728500975533,0.66320225,61109.0,61102.0,0.28444856]
[1728500975722,0.06552,61105.0,61104.0,0.081888]
[1728500976826,0.06552,61105.0,61104.0,0.086888]
[1728500977423,0.10562476,61105.0,61104.0,0.086888]
[1728500978228,0.06552,61105.0,61104.0,0.086888]
[1728500978419,0.06552,61105.0,61104.0,0.00513656]
[1728500978623,0.06552,61105.0,61104.0,0.005]
[1728500978823,0.06552,61105.0,61104.0,0.01]
[1728500979025,0.06552,61105.0,61104.0,0.091888]
[1728500979726,0.10562494,61105.0,61104.0,0.091888]
[1728500980023,0.08189,61105.0,61104.0,0.17342523]
[1728500980230,0.08189,61105.0,61104.0,0.29822953]
[1728500980929,0.08189,61105.0,61104.0,0.17342523]
[1728500981320,0.08189,61105.0,61104.0,0.01]
[1728500981532,0.08189,61105.0,61104.0,0.06526891]
[1728500981731,0.081889,61104.0,61103.0,0.08164891]
[1728500982028,0.442689,61104.0,61103.0,0.01638]
[1728500982430,1.942689,61104.0,61103.0,0.01638]
[1728500983024,1.942689,61104.0,61103.0,0.02238]
[1728500983532,1.942689,61104.0,61103.0,0.07131902]
[1728500983837,1.943689,61104.0,61103.0,0.07731902]
[1728500984023,1.943689,61104.0,61103.0,0.02838]
[1728500984730,0.081894,61100.0,61099.0,0.07746258]
[1728500985226,0.08189,61103.0,61102.0,0.01638]
[1728500985424,0.27189,61103.0,61102.0,0.01638]
[1728500987422,0.27289,61103.0,61102.0,0.01638]
[1728500987634,0.191,61103.0,61096.0,0.06526891]
[1728500987930,0.27389,61103.0,61102.0,0.006]
[1728500988937,0.081894,61100.0,61099.0,0.081895]
[1728500989437,0.081894,61100.0,61098.0,0.01638]
[1728500989438,0.081895,61099.0,61098.0,0.01638]
[1728500989624,0.706295,61099.0,61098.0,0.01638]
[1728500989823,0.706295,61099.0,61098.0,1e-08]
[1728500990632,0.716295,61099.0,61098.0,1e-08]
[1728500991727,0.728295,61099.0,61098.0,1e-08]
[1728500992329,0.715295,61099.0,61098.0,1e-08]
[1728500992535,0.727295,61099.0,61098.0,1e-08]
[1728500993636,0.728295,61099.0,61098.0,1e-08]
[1728500993933,0.716295,61099.0,61098.0,1e-08]
[1728500994131,0.727295,61099.0,61098.0,1e-08]
[1728500994736,0.716295,61099.0,61098.0,1e-08]
[1728500994935,0.727295,61099.0,61098.0,1e-08]
[1728500996325,0.537295,61099.0,61098.0,1e-08]
[1728500996526,0.463695,61099.0,61098.0,0.08189701]
[1728500996730,0.473695,61099.0,61098.0,0.08189701]
[1728500996926,0.473695,61099.0,61098.0,1e-08]
[1728500997333,0.473695,61099.0,61098.0,0.08189701]
[1728500998433,0.473695,61099.0,61098.0,1e-08]
[1728500998635,0.663695,61099.0,61098.0,1e-08]
[1728501002044,0.6918,61099.0,61094.0,0.06531293]
[1728501002236,0.6918,61099.0,61083.0,0.09784467]
[1728501002237,0.19,61095.0,61083.0,0.09784467]
[1728501002538,0.081914,61085.0,61084.0,0.12484197]
[1728501002737,0.081914,61085.0,61084.0,0.04309053]
[1728501002940,0.081914,61085.0,61079.0,0.17991984]
[1728501002941,0.081921,61080.0,61079.0,0.17991984]
[1728501003144,0.081921,61080.0,61079.0,0.081921]
[1728501004129,0.081921,61080.0,61078.0,0.0754]
[1728501004342,0.081925,61077.0,61076.0,0.00245548]
[1728501004841,0.081925,61077.0,61076.0,0.08438148]